bitfinex/quotes_SOLUSD_20250223
["timestamp","ask_amount","ask_price","bid_price","bid_amount"]
[1740332957869,90.0146587,168.39,168.37,1.48644502]
[1740332958375,80.8,168.38,168.37,1.48644502]
[1740332958546,156.84964886,168.38,168.37,1.48644502]
[1740332958749,166.06430756,168.38,168.37,1.48644502]
[1740332958955,138.2,168.38,168.35,1.48644502]
[1740332959179,138.2,168.38,168.35,10.70110372]
[1740332959349,138.2,168.38,168.36,9.2146587]
[1740332960750,138.2,168.38,168.37,1.48644502]
[1740332961249,138.2,168.38,168.37,10.70110372]
[1740332962381,18.64964886,168.4,168.37,10.70110372]
[1740332963177,148.7915,168.41,168.37,10.70110372]
[1740332963385,148.7915,168.41,168.38,1.48644502]
[1740332964674,148.7915,168.41,168.39,1.48644502]
[1740332965188,154.7294,168.41,168.39,1.48644502]
[1740332965679,173.37904886,168.41,168.4,1.48644502]
[1740332966867,167.44114886,168.41,168.4,1.48644502]
[1740332968390,173.37894886,168.41,168.4,1.48644502]
[1740332968873,182.59360756,168.41,168.4,1.48644502]
[1740332969391,184.59360756,168.41,168.4,1.48644502]
[1740332969564,1.0,168.39,168.3,0.063]
[1740332969889,9.2146587,168.35,168.3,9.2776587]
[1740332970078,18.64964886,168.34,168.3,9.2776587]
[1740332970676,27.86430756,168.34,168.3,0.063]
[1740332970989,5.9407,168.33,168.31,1.48681888]
[1740332971177,86.7407,168.33,168.31,1.48681888]
[1740332972196,105.39034886,168.33,168.32,1.48681888]
[1740332975291,24.59034886,168.33,168.32,1.48681888]
[1740332975670,33.80500756,168.33,168.32,1.48681888]
[1740332975870,33.80500756,168.33,168.3,0.063]
[1740332976095,9.2146587,168.31,168.3,0.063]
[1740332976284,147.4146587,168.31,168.3,0.063]
[1740332976981,172.00570756,168.31,168.3,0.063]
[1740332977692,6.025,168.3,168.28,1.48716168]
[1740332977883,13.6546587,168.29,168.28,1.48716168]
[1740332978083,32.30430756,168.29,168.28,1.48716168]
[1740332978288,18.64964886,168.28,168.27,0.063]
[1740332978511,27.86430756,168.28,168.27,0.063]
[1740332979008,33.80670756,168.28,168.27,0.063]
[1740332979192,24.59204886,168.28,168.27,0.063]
[1740332980199,6.025,168.3,168.27,0.063]
[1740332980416,4.44,168.29,168.27,9.2776587]
[1740332981086,4.44,168.29,168.27,0.063]
[1740332981278,23.08964886,168.29,168.27,0.063]
[1740332982218,80.8,168.28,168.27,0.063]
[1740332983803,80.3,168.28,168.27,0.063]
[1740332988024,23.08964886,168.29,168.27,0.063]
[1740332993060,138.2,168.31,168.28,9.2146587]
[1740332993358,138.2,168.31,168.29,9.2146587]
[1740332993522,138.2,168.31,168.27,0.063]
[1740332993718,138.2,168.31,168.29,9.2146587]
[1740332993961,80.8,168.3,168.28,9.2146587]
[1740332994455,80.8,168.3,168.29,9.2146587]
[1740332994939,80.8,168.3,168.29,16.64367877]
[1740332995548,80.8,168.3,168.29,7.42902007]
[1740332997558,80.8,168.32,168.29,16.64367877]
[1740332997751,80.8,168.32,168.3,9.2146587]
[1740332999732,80.8,168.32,168.3,15.1561587]
[1740333001656,80.8,168.32,168.31,9.2146587]
[1740333002859,4.44,168.36,168.31,15.1560587]
[1740333003163,80.8,168.35,168.34,9.2146587]
[1740333004363,80.8,168.35,168.32,9.2146587]
[1740333005650,80.8,168.35,168.33,1.486662]
[1740333006458,99.44964886,168.34,168.33,1.486662]
[1740333006635,27.86430756,168.34,168.33,1.486662]
[1740333006837,35.43740756,168.34,168.33,1.486662]
[1740333007345,35.43740756,168.34,168.28,1.486662]
[1740333007545,18.64964886,168.32,168.28,1.486662]
[1740333007858,18.64964886,168.3,168.28,1.486662]
[1740333008457,18.64964886,168.3,168.27,0.063]
[1740333008951,24.59154886,168.3,168.27,0.063]
[1740333009141,33.80620756,168.3,168.27,0.063]
[1740333009547,18.64964886,168.28,168.27,0.063]
[1740333009752,27.86430756,168.28,168.27,0.063]
[1740333010146,18.64964886,168.28,168.27,0.063]
[1740333010962,24.59204886,168.28,168.27,0.063]
[1740333011660,33.80670756,168.28,168.27,0.063]
[1740333013261,24.59204886,168.28,168.27,0.063]
[1740333016550,9.2146587,168.31,168.27,0.063]
[1740333016735,4.44,168.29,168.27,0.063]
[1740333017547,10.3821,168.29,168.27,0.063]
[1740333017749,18.64964886,168.28,168.27,0.063]
[1740333018935,24.59204886,168.28,168.27,0.063]
[1740333019134,29.03204886,168.28,168.27,0.063]
[1740333023053,1.0,168.24,168.21,0.063]
[1740333023254,9.2146587,168.22,168.21,0.063]
[1740333023461,32.30430756,168.22,168.21,0.063]
[1740333023962,23.08964886,168.22,168.21,0.063]
[1740333025064,29.03414886,168.22,168.21,0.063]
[1740333026875,38.24880756,168.22,168.21,0.063]
[1740333027671,63.46710756,168.22,168.21,0.0001]
[1740333029279,35.38244886,168.22,168.21,0.0001]
[1740333030143,29.03414886,168.22,168.21,0.0001]
[1740333031357,18.64964886,168.22,168.21,0.0001]
[1740333035079,24.59414886,168.22,168.21,0.0001]
[1740333035479,162.79414886,168.22,168.21,0.0001]
[1740333036380,162.82414886,168.22,168.21,0.0001]
[1740333041195,172.03880756,168.22,168.21,0.0001]
[1740333041571,33.83880756,168.22,168.21,0.0001]
[1740333045350,35.38460756,168.22,168.21,0.0001]
[1740333045786,36.38460756,168.22,168.21,0.0001]
[1740333046154,60.52240756,168.22,168.21,0.0001]
[1740333046579,61.52240756,168.22,168.21,0.0001]
[1740333047356,64.49633018,168.22,168.21,0.0001]
[1740333048258,63.49633018,168.22,168.21,0.0001]
[1740333048455,44.62633018,168.22,168.21,0.0001]
[1740333048674,49.06633018,168.22,168.21,0.0001]
[1740333049890,46.09240756,168.22,168.21,0.0001]
[1740333053682,63.96240756,168.22,168.21,0.0001]
[1740333059591,66.92079724,168.22,168.21,0.0001]
[1740333060478,67.92079724,168.22,168.21,0.0001]
[1740333063581,68.92079724,168.22,168.21,0.0001]
[1740333067001,1.0,168.19,168.15,0.063]
[1740333067187,27.86430756,168.17,168.15,0.063]
[1740333067381,23.08964886,168.16,168.15,0.063]
[1740333068193,29.03634886,168.16,168.15,0.063]
[1740333069799,38.25100756,168.16,168.15,0.063]
[1740333074217,23.08964886,168.16,168.15,0.063]
[1740333074510,23.08964886,168.16,168.15,9.2776587]
[1740333075718,11.80198968,168.22,168.15,9.2776587]
[1740333075918,5.9747,168.22,168.19,9.2146587]
[1740333076210,4.47,168.22,168.21,9.2146587]
[1740333076804,23.11964886,168.22,168.21,9.2146587]
[1740333077121,23.11964886,168.22,168.2,9.2146587]
[1740333077818,18.64964886,168.21,168.19,9.2146587]
[1740333077983,18.64964886,168.21,168.18,9.2146587]
[1740333078187,29.06424886,168.22,168.18,9.2146587]
[1740333078728,29.06424886,168.22,168.17,9.2146587]
[1740333079419,18.64964886,168.21,168.17,9.2146587]
[1740333079620,27.86430756,168.21,168.16,9.2146587]
[1740333079995,219.0,168.2,168.16,9.2146587]
[1740333080217,18.64964886,168.19,168.17,9.2146587]
[1740333081212,18.64964886,168.19,168.16,9.2146587]
[1740333081694,24.59534886,168.19,168.15,9.2776587]
[1740333081897,18.64964886,168.17,168.15,0.063]
[1740333082205,4.44,168.16,168.15,0.063]
[1740333084718,23.08964886,168.16,168.15,0.063]
[1740333084897,29.03634886,168.16,168.15,0.063]
[1740333089115,167.23634886,168.16,168.15,0.063]
[1740333089594,142.64,168.16,168.15,9.2776587]
[1740333090634,142.64,168.16,168.15,15.2246587]
[1740333090998,138.2,168.16,168.15,15.2246587]
[1740333094916,85.24,168.19,168.15,15.2246587]
[1740333095117,85.24,168.19,168.16,9.2146587]
[1740333095531,80.8,168.18,168.16,36.8586348]
[1740333095729,80.8,168.18,168.17,9.2146587]
[1740333096545,80.8,168.21,168.17,15.1607587]
[1740333096751,80.8,168.21,168.2,9.2146587]
[1740333097307,0.03,168.22,168.2,9.2146587]
[1740333097511,0.03,168.22,168.21,9.2146587]
[1740333098528,0.03,168.22,168.21,15.1595587]
[1740333102878,0.03,168.28,168.24,20.0]
[1740333103047,0.03,168.28,168.24,29.2146587]
[1740333103936,0.03,168.28,168.27,9.2146587]
[1740333108180,0.03,168.28,168.27,15.1574587]
[1740333108465,0.03,168.32,168.27,15.1574587]
[1740333108670,0.03,168.32,168.31,9.2146587]
[1740333108880,0.03,168.32,168.31,15.1560587]
[1740333110367,0.03,168.32,168.31,9.2146587]
[1740333113174,0.03,168.32,168.3,9.2146587]
[1740333114081,0.03,168.32,168.31,9.2146587]
[1740333114962,0.03,168.32,168.3,9.2146587]
[1740333116796,0.03,168.32,168.31,9.2146587]
[1740333117674,0.03,168.32,168.3,9.2146587]
[1740333118411,0.03,168.32,168.31,9.2146587]
[1740333119975,0.03,168.32,168.3,9.2146587]
[1740333120395,0.03,168.32,168.31,9.2146587]
[1740333121212,0.03,168.32,168.3,9.2146587]
[1740333122771,0.03,168.32,168.29,9.2146587]
[1740333122987,0.03,168.32,168.3,9.2146587]
[1740333123504,0.03,168.32,168.31,9.2146587]
[1740333126189,0.03,168.32,168.3,9.2146587]
[1740333126393,0.03,168.32,168.31,9.2146587]
[1740333128179,0.03,168.32,168.31,15.1560587]
[1740333128378,0.03,168.32,168.31,52.0146935]
[1740333129891,0.03,168.32,168.31,15.1560587]
[1740333135812,0.03,168.32,168.31,52.0146935]
[1740333136917,0.03,168.36,168.34,20.0]
[1740333137084,0.03,168.36,168.35,9.2146587]
[1740333137593,0.03,168.36,168.35,15.1546587]
[1740333139209,0.03,168.39,168.38,19.93811443]
[1740333139415,0.03,168.39,168.38,29.15277313]
[1740333139619,0.03,168.39,168.38,71.95030793]
[1740333140012,80.8,168.43,168.38,71.95030793]
[1740333140219,80.8,168.43,168.42,9.2146587]
[1740333142911,80.8,168.43,168.39,5.9385]
[1740333143104,80.8,168.43,168.42,9.2146587]
[1740333144721,86.7371,168.43,168.41,9.2146587]
[1740333144920,0.03,168.44,168.42,9.2146587]
[1740333145221,0.03,168.44,168.43,9.2146587]
[1740333146411,0.03,168.44,168.43,15.1517587]
[1740333146810,0.03,168.44,168.43,9.2146587]
[1740333147118,0.03,168.44,168.39,5.9385]
[1740333147303,0.03,168.44,168.43,9.2146587]
[1740333148223,0.03,168.44,168.42,9.2146587]
[1740333148412,0.03,168.44,168.41,9.2146587]
[1740333149014,0.03,168.44,168.42,9.2146587]
[1740333149214,0.03,168.44,168.43,9.2146587]
[1740333151636,0.03,168.44,168.43,15.1517587]
[1740333159759,0.03,168.45,168.44,1.0]
[1740333159947,0.03,168.45,168.44,10.2146587]
[1740333160153,0.03,168.45,168.44,9.2146587]
[1740333161243,0.03,168.45,168.44,15.1514587]
[1740333161566,0.03,168.47,168.46,20.0]
[1740333162227,0.03,168.47,168.46,29.2146587]
[1740333162736,0.03,168.47,168.46,35.1507587]
[1740333163453,0.03,168.47,168.46,72.0093935]
[1740333167248,80.8,168.55,168.47,1.0]
[1740333167450,80.8,168.55,168.53,9.2146587]
[1740333169342,86.733,168.55,168.51,29.2146587]
[1740333169543,95.9476587,168.55,168.5,9.2146587]
[1740333169738,95.9476587,168.55,168.47,87.0355]
[1740333169739,27.86430756,168.54,168.49,9.2146587]
[1740333170047,80.8,168.53,168.49,9.2146587]
[1740333170572,80.8,168.53,168.5,29.2146587]
[1740333170938,86.7338,168.53,168.5,29.2146587]
[1740333171763,86.7338,168.53,168.51,9.2146587]
[1740333171968,80.8,168.53,168.51,9.2146587]
[1740333177776,80.8,168.53,168.52,9.2146587]
[1740333179070,86.8041,168.58,168.52,9.2146587]
[1740333179369,86.8041,168.58,168.57,9.2146587]
[1740333179553,86.8041,168.58,168.56,9.2146587]
[1740333180985,86.8041,168.58,168.55,9.2146587]
[1740333181460,92.766,168.58,168.55,9.2146587]
[1740333182370,86.8341,168.58,168.55,9.2146587]
[1740333184191,92.766,168.58,168.55,9.2146587]
[1740333184598,86.8341,168.58,168.55,9.2146587]
[1740333186784,86.8341,168.58,168.56,9.2146587]
[1740333187973,92.766,168.58,168.52,5.934]
[1740333188285,92.766,168.58,168.55,9.2146587]
[1740333189095,86.8341,168.58,168.55,9.2146587]
[1740333189468,92.766,168.58,168.55,9.2146587]
[1740333190189,86.8341,168.58,168.55,9.2146587]
[1740333192711,86.8341,168.58,168.56,9.2146587]
[1740333193078,86.8341,168.58,168.55,9.2146587]
[1740333195483,86.8341,168.58,168.56,9.2146587]
[1740333196306,86.8341,168.58,168.55,9.2146587]
[1740333196480,86.8341,168.58,168.54,9.2146587]
[1740333196674,80.83,168.58,168.55,9.2146587]
[1740333197500,80.83,168.58,168.56,9.2146587]
[1740333197998,80.83,168.58,168.55,9.2146587]
[1740333200602,80.83,168.58,168.56,9.2146587]
[1740333203086,80.83,168.58,168.55,9.2146587]
[1740333204683,87.3757,168.58,168.53,9.2146587]
[1740333204887,87.3757,168.58,168.53,15.1481587]
[1740333205202,88.9435,168.58,168.53,15.1481587]
[1740333205584,94.8754,168.58,168.53,15.1481587]
[1740333206808,9.2146587,168.56,168.48,20.7735]
[1740333206977,90.0146587,168.56,168.5,9.2146587]
[1740333207175,99.44964886,168.55,168.51,29.2146587]
[1740333207397,99.44964886,168.55,168.5,9.2146587]
[1740333207599,80.8,168.54,168.48,5.9354]
[1740333207806,85.22,168.54,168.49,9.2146587]
[1740333208786,91.1533,168.54,168.5,9.2146587]
[1740333208991,91.1533,168.54,168.51,9.2146587]
[1740333209786,85.22,168.54,168.51,9.2146587]
[1740333210802,80.8,168.53,168.51,9.2146587]
[1740333211510,80.8,168.53,168.52,9.2146587]
[1740333213630,80.8,168.53,168.52,15.1486587]
[1740333216801,138.2,168.56,168.52,15.1486587]
[1740333216999,138.2,168.56,168.54,9.2146587]
[1740333217399,138.2,168.56,168.54,15.1477587]
[1740333217594,138.2,168.56,168.55,9.2146587]
[1740333219313,138.2,168.56,168.54,9.2146587]
[1740333219609,138.2,168.56,168.53,9.2146587]
[1740333220117,138.2,168.56,168.54,9.2146587]
[1740333220430,138.23,168.56,168.51,5.9343]
[1740333220718,138.23,168.56,168.54,15.1477587]
[1740333222610,80.83,168.56,168.54,15.1477587]
[1740333224512,80.83,168.56,168.55,9.2146587]
[1740333225436,80.83,168.56,168.55,15.1475587]
[1740333226530,0.03,168.56,168.55,15.1475587]
[1740333226902,7.6735,168.58,168.55,15.1475587]
[1740333227123,86.9057,168.58,168.57,9.2146587]
[1740333227728,161.29964886,168.6,168.57,15.1468587]
[1740333227729,219.03,168.6,168.57,15.1468587]
[1740333227955,219.03,168.6,168.59,9.2146587]
[1740333228115,80.83,168.6,168.59,9.2146587]
[1740333228511,80.83,168.6,168.58,9.2146587]
[1740333228711,18.64964886,168.59,168.55,9.2146587]
[1740333228908,18.64964886,168.57,168.52,15.1486587]
[1740333229219,18.64964886,168.57,168.53,9.2146587]
[1740333229623,18.64964886,168.57,168.51,5.9342]
[1740333229833,6.1835,168.54,168.5,9.2146587]
[1740333230458,6.1835,168.54,168.49,9.2146587]
[1740333231250,6.1835,168.54,168.5,9.2146587]
[1740333231935,6.1835,168.54,168.51,20.0]
[1740333232645,6.1835,168.54,168.5,9.2146587]
[1740333233962,6.1835,168.54,168.5,9.2776587]
[1740333234517,80.8,168.53,168.5,9.2776587]
[1740333234942,80.8,168.53,168.51,9.2146587]
[1740333236462,80.8,168.53,168.5,0.063]
[1740333237340,86.7337,168.53,168.5,0.063]
[1740333237541,99.44964886,168.52,168.5,0.063]
[1740333237750,85.22,168.52,168.5,0.063]
[1740333238041,85.22,168.52,168.5,9.2776587]
[1740333241749,85.22,168.52,168.5,0.063]
[1740333241955,94.4346587,168.52,168.5,0.063]
[1740333242566,18.64964886,168.51,168.5,0.063]
[1740333242864,27.86430756,168.51,168.5,0.063]
[1740333243774,33.79860756,168.51,168.5,0.063]
[1740333245439,80.8,168.53,168.5,9.2776587]
[1740333245642,80.8,168.53,168.52,9.2146587]
[1740333247070,80.8,168.53,168.52,15.1486587]
[1740333248064,6.1835,168.54,168.52,15.1486587]
[1740333248272,6.1835,168.54,168.53,9.2146587]
[1740333248474,1.5384,168.55,168.53,9.2146587]
[1740333252274,82.3384,168.55,168.53,9.2146587]
[1740333252864,82.3384,168.55,168.52,15.1486587]
[1740333254184,0.20817807,168.57,168.54,9.2146587]
[1740333254369,0.20817807,168.57,168.56,9.2146587]
[1740333255681,0.20817807,168.57,168.56,15.1472587]
[1740333263906,0.20817807,168.57,168.56,9.2146587]
[1740333264995,0.20817807,168.57,168.53,5.9334]
[1740333265190,0.20817807,168.57,168.56,9.2146587]
[1740333267000,0.20817807,168.57,168.56,5.9326]
[1740333267371,0.20817807,168.57,168.56,9.2146587]
[1740333267891,0.20817807,168.57,168.55,15.1472587]
[1740333270287,0.20817807,168.57,168.56,9.2146587]
[1740333271106,0.20817807,168.57,168.56,9.2776587]
[1740333271407,0.20817807,168.57,168.56,0.063]
[1740333272284,24.79002693,168.57,168.56,0.063]
[1740333272481,18.85782693,168.57,168.56,0.063]
[1740333273210,0.20817807,168.57,168.56,0.063]
[1740333274785,0.03,168.58,168.56,0.063]
[1740333275510,0.03,168.58,168.57,29.2146587]
[1740333275697,0.03,168.6,168.59,29.2146587]
[1740333275989,0.03,168.61,168.59,29.2146587]
[1740333276193,0.03,168.61,168.59,20.0]
[1740333276578,0.03,168.61,168.6,9.2146587]
[1740333276790,0.03,168.61,168.6,15.1457587]
[1740333277592,0.03,168.61,168.6,9.2146587]
[1740333277798,0.03,168.61,168.58,29.2146587]
[1740333280394,0.03,168.61,168.59,9.2146587]
[1740333281686,0.03,168.61,168.6,9.2146587]
[1740333283213,0.03,168.61,168.6,15.1457587]
[1740333289600,0.03,168.61,168.6,9.2146587]
[1740333294512,0.03,168.61,168.6,15.1457587]
[1740333295234,0.03,168.64,168.6,111.0736587]
[1740333295449,0.03,168.64,168.63,9.2146587]
[1740333298529,0.03,168.64,168.62,9.2146587]
[1740333299527,0.03,168.64,168.61,9.2146587]
[1740333299718,110.19240756,168.63,168.6,0.063]
[1740333299923,6.541,168.62,168.6,0.063]
[1740333300108,6.541,168.62,168.6,9.2776587]
[1740333302642,6.541,168.62,168.6,0.063]
[1740333303834,6.74917807,168.62,168.6,0.063]
[1740333304462,12.67967807,168.62,168.6,0.063]
[1740333304634,21.89433677,168.62,168.6,0.063]
[1740333304840,108.66430756,168.61,168.6,0.063]
[1740333305316,27.86430756,168.61,168.6,0.063]
[1740333307051,33.79510756,168.61,168.6,0.063]
[1740333307228,18.64964886,168.59,168.56,0.063]
[1740333307564,9.2146587,168.57,168.56,0.063]
[1740333307721,27.86430756,168.57,168.56,0.063]
[1740333308858,33.79650756,168.57,168.56,0.063]
[1740333311660,171.99650756,168.57,168.56,0.063]
[1740333312350,80.8,168.6,168.56,9.2776587]
[1740333312554,80.8,168.6,168.57,9.2146587]
[1740333313238,80.8,168.6,168.57,15.1467587]
[1740333313962,80.8,168.6,168.58,9.2146587]
[1740333315277,80.8,168.6,168.57,9.2146587]
[1740333317877,18.64964886,168.59,168.56,0.063]
[1740333318168,27.86430756,168.59,168.56,0.063]
[1740333318541,18.64964886,168.59,168.56,0.063]
[1740333319564,24.58114886,168.59,168.56,0.063]
[1740333323567,80.8,168.58,168.56,0.063]
[1740333324164,80.8,168.58,168.54,28.7776587]
[1740333324364,18.64964886,168.57,168.53,9.2146587]
[1740333325490,24.58214886,168.57,168.52,9.2146587]
[1740333327772,24.58214886,168.57,168.53,9.2146587]
[1740333329569,80.8,168.56,168.53,9.2146587]
[1740333331495,80.8,168.56,168.51,5.9342]
[1740333331796,80.8,168.56,168.53,9.2146587]
[1740333332494,80.8,168.56,168.51,5.9342]
[1740333332793,80.8,168.56,168.53,9.2146587]
[1740333334199,0.20817807,168.55,168.53,9.2146587]
[1740333337411,6.14107807,168.55,168.52,9.2146587]
[1740333337597,0.20817807,168.55,168.52,9.2146587]
[1740333337776,6.14117807,168.55,168.52,9.2146587]
[1740333338207,6.14117807,168.55,168.52,20.0]
[1740333339702,6.14117807,168.55,168.51,9.2146587]
[1740333339908,18.64964886,168.54,168.5,0.063]
[1740333341081,5.9336,168.53,168.5,0.063]
[1740333341297,18.64964886,168.52,168.5,0.063]
[1740333343311,24.58374886,168.52,168.5,0.063]
[1740333343897,18.64964886,168.52,168.5,0.063]
[1740333344809,0.20817807,168.55,168.51,9.2146587]
[1740333345012,0.20817807,168.55,168.54,9.2146587]
[1740333345783,0.20817807,168.55,168.54,15.1479587]
[1740333346590,0.20817807,168.55,168.54,9.2146587]
[1740333346792,0.20817807,168.55,168.54,15.1479587]
[1740333349012,0.20817807,168.55,168.53,15.1481587]
[1740333350412,18.85782693,168.55,168.5,9.2776587]
[1740333350614,17.1245587,168.54,168.5,0.063]
[1740333350918,23.0578587,168.54,168.5,0.063]
[1740333351512,7.9099,168.54,168.5,9.2776587]
[1740333353026,7.9099,168.54,168.5,15.2122587]
[1740333356329,88.7099,168.54,168.5,15.2122587]
[1740333356718,87.1312,168.54,168.5,15.2122587]
[1740333363237,87.1312,168.54,168.52,9.2146587]
[1740333363441,80.8,168.54,168.52,9.2146587]
[1740333363738,80.8,168.54,168.53,9.2146587]
[1740333364029,0.23817807,168.55,168.53,9.2146587]
[1740333364227,0.23817807,168.55,168.54,9.2146587]
[1740333365735,0.23817807,168.55,168.53,9.2146587]
[1740333367535,0.23817807,168.55,168.52,29.2146587]
[1740333367711,0.23817807,168.55,168.52,9.2146587]
[1740333368045,0.23817807,168.55,168.51,9.2146587]
[1740333369914,86.97117807,168.55,168.51,9.2146587]
[1740333371213,18.64964886,168.54,168.5,9.2776587]
[1740333371407,99.44964886,168.54,168.5,0.063]
[1740333371632,6.4056,168.53,168.5,0.063]
[1740333372524,12.3394,168.53,168.5,0.063]
[1740333375654,12.3394,168.53,168.5,9.2776587]
[1740333376722,18.64964886,168.52,168.5,0.063]
[1740333377035,103.86964886,168.51,168.5,0.063]
[1740333378056,113.08430756,168.51,168.5,0.063]
[1740333378946,119.01860756,168.51,168.5,0.063]
[1740333379150,119.01860756,168.51,168.46,29.12696194]
[1740333379447,18.64964886,168.49,168.45,9.2146587]
[1740333379943,18.64964886,168.49,168.44,20.0]
[1740333379944,18.64964886,168.47,168.44,20.0]
[1740333380115,99.44964886,168.47,168.43,9.2776587]
[1740333380316,115.26720756,168.47,168.43,0.063]
[1740333380957,18.64964886,168.45,168.43,0.063]
[1740333381452,32.28430756,168.45,168.43,0.063]
[1740333381943,23.06964886,168.45,168.43,0.063]
[1740333383741,108.66430756,168.44,168.43,0.063]
[1740333384958,110.23950756,168.44,168.43,0.063]
[1740333385516,116.17630756,168.44,168.43,0.063]
[1740333389040,35.37630756,168.44,168.43,0.063]
[1740333389563,20.22484886,168.44,168.43,0.063]
[1740333389954,18.64964886,168.44,168.43,0.063]
[1740333410218,33.80110756,168.44,168.43,0.063]
[1740333411699,24.58644886,168.44,168.43,0.063]
[1740333411869,33.80110756,168.44,168.43,0.063]
[1740333412373,18.64964886,168.44,168.43,0.063]
[1740333412569,23.06964886,168.44,168.43,0.063]
[1740333413572,23.06964886,168.44,168.43,9.2776587]
[1740333413773,138.40817807,168.45,168.43,9.2776587]
[1740333413977,0.20817807,168.45,168.44,9.2146587]
[1740333414503,0.20817807,168.45,168.44,15.1514587]
[1740333419807,0.20817807,168.45,168.44,9.2146587]
[1740333420401,0.20817807,168.45,168.43,9.2776587]
[1740333420728,18.85782693,168.45,168.43,0.063]
[1740333422006,0.20817807,168.45,168.43,0.063]
[1740333422303,0.20817807,168.45,168.44,9.2146587]
[1740333424075,0.20817807,168.45,168.44,15.1514587]
[1740333430309,0.20817807,168.45,168.44,9.2146587]
[1740333430521,0.20817807,168.45,168.44,15.1514587]
[1740333431087,0.20817807,168.45,168.44,9.2146587]
[1740333432818,0.20817807,168.45,168.44,15.1514587]
[1740333442003,0.20817807,168.45,168.44,15.2144587]
[1740333449531,0.20817807,168.45,168.44,0.063]
[1740333458028,24.79422693,168.45,168.44,0.063]
[1740333460345,105.59422693,168.45,168.44,0.063]
[1740333460758,34.00888563,168.45,168.44,0.063]
[1740333466858,35.55248563,168.45,168.44,0.063]
[1740333476444,18.85782693,168.45,168.44,0.063]
[1740333478467,0.20817807,168.45,168.44,9.2776587]
[1740333482249,0.20817807,168.45,168.44,15.2144587]
[1740333489150,0.20817807,168.45,168.44,0.063]
[1740333489353,18.85782693,168.45,168.44,0.063]
[1740333489680,29.21422693,168.45,168.44,0.063]
[1740333490982,38.42888563,168.45,168.44,0.063]
[1740333494378,29.21422693,168.45,168.44,0.063]
[1740333494680,38.42888563,168.45,168.44,0.063]
[1740333495760,29.21422693,168.45,168.44,0.063]
[1740333496683,4.42,168.45,168.44,0.063]
[1740333498591,10.3564,168.45,168.44,0.063]
[1740333498797,29.00604886,168.45,168.44,0.063]
[1740333499101,38.22070756,168.45,168.44,0.063]
[1740333499278,29.00604886,168.45,168.44,0.063]
[1740333500491,23.06964886,168.45,168.44,0.063]
[1740333501195,18.64964886,168.45,168.44,0.063]
[1740333502099,137.41422693,168.46,168.44,9.2776587]
[1740333502594,137.44422693,168.46,168.44,9.2776587]
[1740333502982,137.44422693,168.46,168.45,9.2146587]
[1740333504402,137.44422693,168.46,168.44,15.2144587]
[1740333506774,137.44422693,168.46,168.44,9.2776587]
[1740333507603,137.03020933,168.46,168.44,9.2776587]
[1740333507892,137.03020933,168.46,168.44,0.063]
[1740333508073,27.86430756,168.45,168.44,0.063]
[1740333509203,33.80070756,168.45,168.44,0.063]
[1740333509989,35.44170756,168.45,168.44,0.063]
[1740333515012,26.22704886,168.45,168.44,0.063]
[1740333515309,35.44170756,168.45,168.44,0.063]
[1740333524405,53.28170756,168.45,168.44,0.063]
[1740333524599,35.44170756,168.45,168.44,0.063]
[1740333527430,26.22704886,168.45,168.44,0.063]
[1740333527602,35.44170756,168.45,168.44,0.063]
[1740333529428,54.28170756,168.45,168.44,0.063]
[1740333529611,60.77110756,168.45,168.44,0.063]
[1740333530032,46.70430756,168.44,168.43,0.063]
[1740333530498,46.70430756,168.44,168.43,0.0001]
[1740333531712,52.64110756,168.44,168.43,0.0001]
[1740333532012,37.48964886,168.43,168.39,0.063]
[1740333532210,27.86430756,168.4,168.39,0.063]
[1740333533623,33.80250756,168.4,168.39,0.063]
[1740333536513,36.73954638,168.4,168.39,0.063]